fUSD/lending_fUSD_20251206
["ID","MTS","AMOUNT","RATE_DAILY","PERIOD"]
[396495855,1765005038455,-3134.02263619,0.00016099,2]
[396495856,1765005038465,-500.0,0.00016137,4]
[396495857,1765005038474,-147.46635053,0.00016137,4]
[396495858,1765005039623,-151.0,0.00016099,2]
[396495859,1765005039632,-192.71020166,0.00016099,2]
[396495860,1765005039642,-428.53364947,0.00016137,4]
[396495861,1765005039651,-150.0,0.00016137,4]
[396495862,1765005039660,-559.49182125,0.00016137,4]
[396495863,1765005039669,-500.0,0.00016137,2]
[396495864,1765005039679,-500.0,0.00016137,4]
[396495865,1765005039688,-150.0,0.00016137,4]
[396495866,1765005039698,-500.0,0.00016137,4]
[396495867,1765005039707,-150.0,0.00016137,2]
[396495868,1765005039716,-150.0,0.00016137,2]
[396495869,1765005039726,-150.0,0.00016137,2]
[396495870,1765005039735,-2602.94117484,0.00016177,2]
[396495871,1765005039744,-163.66,0.0001618,2]
[396495872,1765005039753,-779.66,0.00016229,2]
[396495873,1765005039762,-3134.02263619,0.00016232,2]
[396495874,1765005039772,-500.0,0.00016274,4]
[396495875,1765005039781,-576.0,0.00016274,4]
[396495876,1765005039793,-150.0,0.00016274,4]
[396495877,1765005039802,-455.38519579,0.00016274,2]
[396495878,1765005039812,-500.0,0.00016274,4]
[396495879,1765005039823,-154.31095398,0.00016274,4]
[396495880,1765005039833,-500.0,0.00016274,4]
[396495881,1765005039843,-300.0,0.00016319,2]
[396495882,1765005039852,-200.0,0.00016319,2]
[396495883,1765005039861,-207.4,0.00016319,2]
[396495884,1765005039872,-215.0738,0.00016319,2]
[396495885,1765005039881,-223.0315306,0.00016319,2]
[396495886,1765005039890,-231.28369723,0.00016319,2]
[396495887,1765005039899,-239.84119403,0.00016319,2]
[396495888,1765005039909,-248.71531821,0.00016319,2]
[396495889,1765005039917,-257.91778498,0.00016319,2]
[396495890,1765005039927,-267.46074303,0.00016319,2]
[396495891,1765005039935,-277.35679052,0.00016319,2]
[396495892,1765005039945,-1000.0,0.00016319,2]
[396495893,1765005039954,-151.0,0.00016319,2]
[396495894,1765005039964,-156.587,0.00016319,2]
[396495895,1765005039973,-162.380719,0.00016319,2]
[396495896,1765005039982,-151.95850378,0.00016319,2]
[396495897,1765005039991,-151.0,0.00016319,2]
[396495898,1765005040000,-2602.94117484,0.00016321,2]
[396495899,1765005040010,-501.65512545,0.00016326,2]
[396495900,1765005040019,-181.99429266,0.00016326,2]
[396495901,1765005040029,-731.67640305,0.00016326,2]
[396495902,1765005040038,-3055.06739853,0.00016326,2]
[396495903,1765005040047,-500.0,0.00016335,2]
[396495904,1765005040057,-500.0,0.00016335,2]
[396495905,1765005040067,-500.0,0.00016335,2]
[396495906,1765005040083,-233.75483293,0.00016335,2]
[396495907,1765005040102,-500.0,0.00016335,2]
[396495908,1765005040112,-236.92908598,0.00016335,2]
[396495909,1765005040121,-500.0,0.00016335,2]
[396495910,1765005040131,-386.00822049,0.00016335,2]
[396495911,1765005040140,-3134.02263619,0.00016366,2]
[396495912,1765005040157,-461.27937917,0.00016411,4]
[396495913,1765005040174,-576.0,0.00016411,4]
[396495914,1765005040184,-150.0,0.00016411,4]
[396495915,1765005040194,-500.0,0.00016411,4]
[396495916,1765005040203,-500.0,0.00016411,4]
[396495917,1765005040212,-500.0,0.00016411,2]
[396495918,1765005040221,-150.0,0.0001642,2]
[396495919,1765005040231,-150.0,0.0001642,2]
[396495920,1765005040240,-150.0,0.0001642,2]
[396495921,1765005040249,-164.14,0.0001644,2]
[396495922,1765005040259,-2602.94117484,0.00016466,2]
[396495923,1765005040269,-3134.02263619,0.00016499,2]
[396495924,1765005040278,-779.66,0.00016503,2]
[396495925,1765005040287,-2208.83,0.00016538,2]
[396495926,1765005040296,-576.0,0.00016548,4]
[396495927,1765005040306,-237.71159948,0.00016548,4]
[396495928,1765005040315,-258.17832554,0.00016548,4]
[396495930,1765005040324,-500.0,0.00016548,4]
[396495931,1765005040333,-2424.46577261,0.00016611,2]
[396495932,1765005040345,-178.47540223,0.00016611,2]
[396495933,1765005040355,-163.25,0.00016616,2]
[396495934,1765005040364,-3134.02263619,0.00016633,2]
[396495935,1765005040373,-215.32,0.00016633,2]
[396495936,1765005040383,-244.45464348,0.00016685,4]
[396495937,1765005040406,-331.54535652,0.00016685,4]
[396495938,1765005040415,-197.96074314,0.00016685,4]
[396495939,1765005040427,-302.03925686,0.00016685,4]
[396495941,1765005040436,-150.0,0.00016703,2]
[396495942,1765005040445,-1323.0,0.00016717,2]
[396495944,1765005040455,-3446.0,0.00016717,2]
[396495946,1765005040464,-1605.0,0.00016717,2]
[396495947,1765005040474,-562.0,0.00016717,2]
[396495948,1765005040483,-1135.12965495,0.00016717,2]
[396495949,1765005040509,-293.28934505,0.00016717,2]
[396495950,1765005040519,-356.4331131,0.00016717,2]
[396495951,1765005040546,-3800.79606342,0.00016717,2]
[396495953,1765005041697,-1.7e-07,0.00016717,2]
[396495954,1765005041708,-2355.77082331,0.00016717,2]
[396495955,1765005041717,-62.22917669,0.00016732,2]
[396495956,1765005041728,-132.77082331,0.00016732,2]
[396495957,1765005041737,-281.65674179,0.00016732,2]
[396495958,1765005041746,-195.0,0.00016732,2]
[396495959,1765005041755,-300.0,0.00016732,2]
[396495960,1765005041764,-300.0,0.00016732,2]
[396495961,1765005041774,-385.23033913,0.00016732,2]
[396495962,1765005041783,-2602.94117484,0.00016755,2]
[396495963,1765005041795,-3134.02263619,0.00016766,2]
[396495964,1765005041804,-500.0,0.00016773,2]
[396495965,1765005041813,-500.0,0.00016773,2]
[396495966,1765005041822,-500.0,0.00016773,2]
[396495967,1765005041831,-500.0,0.00016773,2]
[396495968,1765005041840,-500.0,0.00016773,2]
[396495969,1765005041849,-500.0,0.00016773,2]
[396495970,1765005041859,-500.0,0.00016773,2]
[396495971,1765005041869,-500.0,0.00016773,2]
[396495972,1765005041879,-500.0,0.00016773,2]
[396495973,1765005041888,-195.0,0.00016774,2]
[396495974,1765005041897,-300.0,0.00016774,2]
[396495975,1765005041907,-779.66,0.00016777,2]
[396495976,1765005041916,-374.52932012,0.00016816,2]
[396495977,1765005041927,-576.0,0.00016822,4]
[396495978,1765005041936,-500.0,0.00016822,4]
[396495979,1765005041945,-150.0,0.0001684,2]
[396495980,1765005041955,-150.0,0.0001684,2]
[396495981,1765005041964,-150.0,0.0001684,2]
[396495982,1765005041973,-150.0,0.0001684,2]
[396495983,1765005041983,-150.0,0.0001684,2]
[396495984,1765005041992,-150.0,0.0001684,2]
[396495985,1765005042001,-1000.0,0.00016867,2]
[396495986,1765005042011,-157.30272626,0.00016867,2]
[396495987,1765005042021,-165.0,0.000169,2]
[396495988,1765005042030,-165.0,0.000169,2]
[396495989,1765005042039,-166.58,0.000169,2]
[396495990,1765005042048,-326.07879606,0.000169,2]
[396495991,1765005042058,-3134.02263619,0.000169,2]
[396495992,1765005042067,-245.8572783,0.000169,2]
[396495993,1765005042076,-641.30456326,0.000169,2]
[396495994,1765005042085,-2602.94117484,0.000169,2]
[396495995,1765005042095,-978.01957178,0.000169,2]
[396495996,1765005042103,-1171.1452511,0.000169,2]
[396495997,1765005042112,-879.14378256,0.00016902,2]
[396495998,1765005042121,-351.43507143,0.00016925,2]
[396495999,1765005042131,-7694.287425,0.00016935,2]
[396496000,1765005042140,-1520.94437317,0.00016953,2]
[396496001,1765005042152,-805.58482443,0.00016953,2]
[396496002,1765005042160,-6889.89946223,0.00016953,2]
[396496003,1765005042171,-9442.50097577,0.00016953,2]
[396496004,1765005042180,-576.0,0.00016959,4]
[396496005,1765005042189,-500.0,0.00016959,4]
[396496006,1765005042198,-220.0,0.00016973,2]
[396496007,1765005042207,-520.22360913,0.00016986,2]
[396496008,1765005042217,-211.1859063,0.00016986,2]
[396496009,1765005042226,-159.95799,0.00016986,2]
[396496010,1765005042236,-155.7271854,0.00016986,2]
[396496011,1765005042245,-262.63843617,0.00016986,2]
[396496012,1765005042254,-156.63475693,0.00016986,2]
[396496013,1765005042263,-157.16718267,0.00016986,2]
[396496014,1765005042272,-150.0,0.00016986,2]
[396496015,1765005042282,-150.0,0.00016986,2]
[396496016,1765005042292,-351.43507143,0.0001699,2]
[396496017,1765005042301,-500.0,0.00016999,2]
[396496018,1765005042311,-500.0,0.00016999,2]
[396496019,1765005042320,-517.23784014,0.00016999,2]
[396496020,1765005042329,-32.86462409,0.00016999,2]
[396496021,1765005042342,-467.13537591,0.00016999,2]
[396496023,1765005042351,-500.0,0.00016999,2]
[396496025,1765005042363,-300.0,0.00016999,2]
[396496026,1765005042372,-1000.0,0.00016999,2]
[396496027,1765005042381,-3627.0,0.00017,2]
[396496028,1765005042390,-1721.9797477,0.00017,2]
[396496030,1765005043632,-275.49029738,0.00016538,2]
[396496031,1765005043643,-1748.36718238,0.00017,2]
[396496037,1765005044544,-1438.96713515,0.00017,2]
[396496038,1765005045625,-500.0,0.00015999,2]
[396496039,1765005045634,-33.32467953,0.00015999,2]
[396496049,1765005052086,-466.67532047,0.00015999,2]
[396496050,1765005052096,-359.37467853,0.00016018,2]
[396496051,1765005052107,-140.62532147,0.00016018,2]
[396496052,1765005052117,-458.64645884,0.00016335,2]
[396496053,1765005052126,-2948.15973527,0.00017,2]
[396496054,1765005052137,-1165.7120986,0.00017,2]
[396496055,1765005052156,-4426.0972198,0.00017,2]
[396496056,1765005052168,-18786.58233682,0.00017,2]
[396496057,1765005052179,-599569.87942815,0.00017,2]
[396496255,1765005468306,2340.01295797,0.00015,10]
[396496256,1765005468330,1606.17704203,0.00015,10]
[396496314,1765005797566,216.56,0.00012071,2]
[396496330,1765005917247,-150.0,0.00015288,2]
[396496331,1765005917306,-150.0,0.00015312,2]
[396496332,1765005917364,-150.0,0.00015336,2]
[396496333,1765005917423,-150.0,0.0001536,2]
[396496334,1765005917481,-150.0,0.00015385,2]
[396496335,1765005917540,-150.0,0.00015409,2]
[396496336,1765005917599,-150.0,0.00015433,2]
[396496337,1765005917660,-150.0,0.00015458,2]
[396496338,1765005917721,-279.0,0.00015481,2]
[396496339,1765005917778,-250.0,0.00015482,2]
[396496340,1765005917836,-150.0,0.00015482,2]
[396496341,1765005917894,-288.6588,0.00015482,2]
[396496342,1765005917955,-1619.53037895,0.00015482,2]
[396496343,1765005918016,-150.0,0.00015506,2]
[396496344,1765005918078,-250.0,0.00015515,2]
[396496345,1765005918140,-150.0,0.0001553,2]
[396496346,1765005918200,-150.0,0.00015555,2]
[396496347,1765005918262,-300.0,0.00015572,2]
[396496348,1765005918461,-1200.0,0.00015572,2]
[396496349,1765005918521,-500.0,0.00015573,2]
[396496350,1765005918580,-200.0,0.00015573,2]
[396496351,1765005918640,-151.0,0.00015573,2]
[396496352,1765005918700,-200.0,0.00015573,2]
[396496353,1765005918759,-151.0,0.00015573,2]
[396496354,1765005918816,-151.0,0.00015573,2]
[396496355,1765005918874,-159.55533987,0.00015573,2]
[396496356,1765005919305,-151.0,0.00015573,2]
[396496357,1765005919371,-151.0,0.00015573,2]
[396496358,1765005919440,-151.0,0.00015573,2]
[396496359,1765005919503,-239.7235462,0.00015573,2]
[396496360,1765005919564,-150.0,0.00015579,2]
[396496361,1765005922029,2549.41831194,9e-05,2]
[396496362,1765005922052,628.65604987,9e-05,2]
[396496363,1765005922458,-150.0,0.00015288,2]
[396496364,1765005922515,-150.0,0.00015344,2]
[396496365,1765005922571,-150.0,0.00015401,2]
[396496366,1765005922627,-150.0,0.00015458,2]
[396496367,1765005922682,-150.0,0.00015514,2]
[396496368,1765005922738,-150.0,0.00015571,2]
[396496369,1765005922795,-171.8617969,0.0001558,5]
[396496370,1765005922951,1600.0,0.00014733,2]
[396496371,1765005923858,-150.0,0.00015288,2]
[396496372,1765005923868,-150.0,0.00015288,2]
[396496373,1765005923880,-150.0,0.0001532,2]
[396496374,1765005923890,-150.0,0.00015352,2]
[396496375,1765005923901,-150.0,0.00015384,2]
[396496376,1765005923912,-150.0,0.00015416,2]
[396496377,1765005923922,-150.0,0.00015448,2]
[396496378,1765005923932,-150.0,0.0001548,2]
[396496379,1765005923942,-150.0,0.00015512,2]
[396496380,1765005923953,-150.0,0.00015544,2]
[396496381,1765005923962,-150.0,0.00015576,2]
[396496382,1765005923972,-5844.73863406,0.0001558,5]
[396496383,1765005924080,-2011.54777214,0.0001558,5]
[396496384,1765005924143,-2441.377,0.0001558,2]
[396496385,1765005924202,-172.448,0.0001558,2]
[396496386,1765005924261,-155.90817045,0.00015581,2]
[396496387,1765005924662,-437.44811482,0.00015581,2]
[396496395,1765005953760,1294.43854756,0.000151,2]
[396496396,1765005957077,-150.0,0.00015288,2]
[396496397,1765005957138,-150.0,0.00015288,2]
[396496398,1765005957202,-150.0,0.00015288,2]
[396496399,1765005957266,-150.0,0.00015288,2]
[396496400,1765005957330,-150.0,0.00015288,2]
[396496401,1765005957392,-150.0,0.00015288,2]
[396496402,1765005957464,-150.0,0.00015288,2]
[396496403,1765005957528,-150.0,0.00015288,2]
[396496404,1765005957584,-150.0,0.00015288,2]
[396496405,1765005957638,-150.0,0.00015288,2]
[396496406,1765005957695,-150.0,0.00015311,2]
[396496407,1765005957750,-150.0,0.0001533,2]
[396496408,1765005957808,-150.0,0.00015334,2]
[396496409,1765005957863,-150.0,0.00015338,2]
[396496410,1765005957919,-150.0,0.00015348,2]
[396496411,1765005957977,-150.0,0.00015357,2]
[396496412,1765005958032,-150.0,0.00015373,2]
[396496413,1765005958093,-150.0,0.00015381,2]
[396496414,1765005958150,-150.0,0.00015388,2]
[396496415,1765005958210,-150.0,0.00015401,2]
[396496416,1765005958282,-150.0,0.00015404,2]
[396496417,1765005958343,-150.0,0.00015409,2]
[396496418,1765005958404,-150.0,0.00015415,2]
[396496419,1765005958462,-150.0,0.00015427,2]
[396496420,1765005958519,-150.0,0.00015438,2]
[396496421,1765005958576,-150.0,0.00015451,2]
[396496422,1765005958633,-150.0,0.00015458,2]
[396496423,1765005958695,-150.0,0.00015458,2]
[396496424,1765005958757,-150.0,0.0001547,2]
[396496425,1765005958818,-150.0,0.00015474,2]
[396496426,1765005958877,-361.77057378,0.00015482,2]
[396496427,1765005958937,-126.46885244,0.00015488,2]
[396496428,1765005960305,-23.53114756,0.00015488,2]
[396496430,1765005960369,-150.0,0.00015497,2]
[396496432,1765005960436,-150.0,0.000155,2]
[396496433,1765005960512,-150.0,0.00015514,2]
[396496434,1765005960586,-150.0,0.0001552,2]
[396496435,1765005960667,-150.0,0.0001553,2]
[396496436,1765005960741,-150.0,0.00015537,2]
[396496437,1765005960809,-150.0,0.00015542,2]
[396496438,1765005960876,-150.0,0.00015544,2]
[396496439,1765005960944,-150.0,0.00015567,2]
[396496440,1765005961012,-150.0,0.00015571,2]
[396496441,1765005961086,-62.55188518,0.00015581,2]
[396496442,1765005961162,-500.0,0.00015581,2]
[396496443,1765005961236,-500.0,0.00015581,2]
[396496444,1765005961308,-500.0,0.00015581,2]
[396496445,1765005961376,-500.0,0.00015581,2]
[396496446,1765005961448,-500.0,0.00015581,2]
[396496447,1765005961517,-500.0,0.00015581,2]
[396496448,1765005961585,-327.84393452,0.00015581,2]
[396496449,1765005961854,-172.15606548,0.00015581,2]
[396496450,1765005961919,-500.0,0.00015581,2]
[396496451,1765005961984,-500.0,0.00015581,2]
[396496452,1765005962047,-500.0,0.00015581,2]
[396496453,1765005962111,-500.0,0.00015581,2]
[396496454,1765005962177,-500.0,0.00015581,2]
[396496455,1765005962243,-500.0,0.00015581,2]
[396496456,1765005962309,-500.0,0.00015581,2]
[396496457,1765005962376,-500.0,0.00015581,2]
[396496458,1765005962444,-500.0,0.00015581,2]
[396496459,1765005962511,-155.69786904,0.00015581,2]
[396496460,1765005962918,-344.30213096,0.00015581,2]
[396496461,1765005962985,-500.0,0.00015581,2]
[396496462,1765005963051,-500.0,0.00015581,2]
[396496463,1765005963115,-500.0,0.00015581,2]
[396496464,1765005963275,-500.0,0.00015581,2]
[396496465,1765005963347,-500.0,0.00015581,2]
[396496466,1765005963420,-500.0,0.00015581,2]
[396496467,1765005963486,-500.0,0.00015581,2]
[396496468,1765005963551,-500.0,0.00015581,2]
[396496469,1765005963613,-500.0,0.00015581,2]
[396496470,1765005967984,-150.0,0.00015288,2]
[396496471,1765005968042,-300.0,0.0001558,2]
[396496472,1765005968106,-500.0,0.00015581,2]
[396496473,1765005968177,-500.0,0.00015581,2]
[396496474,1765005968243,-500.0,0.00015581,2]
[396496475,1765005968307,-500.0,0.00015581,2]
[396496476,1765005968374,-500.0,0.00015581,2]
[396496477,1765005968441,-500.0,0.00015581,2]
[396496478,1765005968504,-500.0,0.00015581,2]
[396496479,1765005968565,-500.0,0.00015581,2]
[396496480,1765005968627,-500.0,0.00015581,2]
[396496481,1765005968853,-500.0,0.00015581,2]
[396496482,1765005968917,-500.0,0.00015581,2]
[396496483,1765005968984,-500.0,0.00015581,2]
[396496484,1765005969048,-500.0,0.00015581,2]
[396496485,1765005969121,-500.0,0.00015581,2]
[396496486,1765005969190,-500.0,0.00015581,2]
[396496487,1765005969263,-500.0,0.00015581,2]
[396496488,1765005969327,-500.0,0.00015581,2]
[396496489,1765005969393,-536.17309205,0.00015581,2]
[396496490,1765005969470,-427.6638159,0.00015581,2]
[396496491,1765005970656,-72.3361841,0.00015581,2]
[396496492,1765005970722,-500.0,0.00015581,2]
[396496493,1765005970787,-500.0,0.00015581,2]
[396496494,1765005970852,-500.0,0.00015581,2]
[396496495,1765005970915,-500.0,0.00015581,2]
[396496496,1765005970981,-621.29097251,0.00015581,2]
[396496497,1765005971046,-500.0,0.00015581,2]
[396496498,1765005971123,-500.0,0.00015581,2]
[396496499,1765005971191,-500.0,0.00015581,2]
[396496500,1765005971255,-500.0,0.00015581,2]
[396496501,1765005971324,-112.75568678,0.00015581,2]
[396496502,1765005972951,-387.24431322,0.00015581,2]
[396496503,1765005973016,-500.0,0.00015581,2]
[396496504,1765005973088,-500.0,0.00015581,2]
[396496505,1765005973157,-500.0,0.00015581,2]
[396496506,1765005973221,-500.0,0.00015581,2]
[396496507,1765005973285,-500.0,0.00015581,2]
[396496508,1765005973351,-500.0,0.00015581,2]
[396496509,1765005973416,-500.0,0.00015581,2]
[396496510,1765005973482,-500.0,0.00015581,2]
[396496511,1765005973545,-500.0,0.00015581,2]
[396496512,1765005973741,-500.0,0.00015581,2]
[396496513,1765005973804,-500.0,0.00015581,2]
[396496514,1765005973869,-500.0,0.00015581,2]
[396496515,1765005973933,-500.0,0.00015581,2]
[396496516,1765005973998,-500.0,0.00015581,2]
[396496517,1765005974063,-200.00000001,0.00015581,2]
[396496518,1765005974129,-500.0,0.00015581,2]
[396496519,1765005974195,-500.0,0.00015581,2]
[396496520,1765005974259,-500.0,0.00015581,2]
[396496521,1765005974321,-500.0,0.00015581,2]
[396496522,1765005974383,-100.00999998,0.00015581,2]
[396496524,1765005976973,-124.43646943,0.00015434,2]
[396496525,1765005977017,-125.56353057,0.00015434,2]
[396496526,1765005977026,-374.43646943,0.00015581,2]
[396496527,1765005977070,-25.55353059,0.00015581,2]
[396496528,1765005977080,-431.33038934,0.00015581,2]
[396496529,1765005977089,-43.11608007,0.00015581,2]
[396496530,1765005977143,-456.88391993,0.00015581,2]
[396496531,1765005977153,-43.11608007,0.00015581,2]
[396496532,1765005977203,-165.54779631,0.00015581,2]
[396496533,1765005977212,-293.92091827,0.00015581,2]
[396496534,1765005977223,-40.53128542,0.00015581,2]
[396496537,1765005986059,740.16,7.433e-05,2]
[396496538,1765005986265,740.16,7.824e-05,2]
[396496539,1765005986481,740.16,8.215e-05,2]
[396496540,1765005986728,740.16,8.606e-05,2]
[396496541,1765005986924,740.16,8.998e-05,2]
[396496542,1765005987137,740.16,9.389e-05,2]
[396496543,1765005987336,740.16,9.78e-05,2]
[396496544,1765005987544,740.16,0.00010171,2]
[396496545,1765005989670,632.50075654,0.00010562,2]
[396496546,1765005989694,107.65924346,0.00010562,2]
[396496547,1765005989872,740.16,0.00010954,2]
[396496548,1765005990063,740.16,0.00011345,2]
[396496549,1765005990258,740.16,0.00011736,2]
[396496550,1765005990464,740.16,0.00012127,2]
[396496551,1765005990656,740.16,0.00012519,2]
[396496552,1765005990872,347.13611051,0.0001291,2]
[396496553,1765005990899,393.02388949,0.0001291,2]
[396496554,1765005991536,740.16,0.00013301,2]
[396496555,1765005991585,740.16,0.00013692,2]
[396496556,1765005992045,740.16,0.00014083,2]
[396496557,1765005992095,740.16,0.00014475,2]
[396496558,1765005992147,740.16,0.00014866,2]
[396496564,1765006000414,61.77146448,0.00014861,2]
[396496565,1765006000437,1351.27853552,0.00014861,2]
[396496575,1765006037257,1000.0,0.0001485,2]
[396496578,1765006053819,200.0,0.00014856,2]
[396496588,1765006113596,830.11,0.00013699,2]
[396496599,1765006142849,774.20681845,0.00014999,3]
[396496600,1765006142875,225.79318155,0.00014999,3]
[396496628,1765006202404,200.0,0.00014806,2]
[396496643,1765006232273,-316.54925204,0.00015382,2]
[396496644,1765006232283,-151.93127254,0.00015481,2]
[396496645,1765006232294,-500.0,0.00015481,2]
[396496646,1765006232304,-610.0,0.00015481,2]
[396496647,1765006232315,-1200.0,0.00015481,2]
[396496648,1765006232327,-151.91184725,0.00015481,2]
[396496650,1765006235182,-196.39947267,0.00015481,2]
[396496651,1765006235248,-500.0,0.00015481,2]
[396496652,1765006235312,-500.0,0.00015481,2]
[396496653,1765006235375,-500.0,0.00015481,2]
[396496654,1765006235435,-500.0,0.00015481,2]
[396496655,1765006235500,-500.0,0.00015481,2]
[396496656,1765006235565,-500.0,0.00015481,2]
[396496657,1765006235629,-500.0,0.00015481,2]
[396496658,1765006235693,-500.0,0.00015481,2]
[396496659,1765006235757,-160.45548255,0.00015481,2]
[396496660,1765006235823,-500.0,0.00015481,2]
[396496661,1765006236322,-500.0,0.00015481,2]
[396496662,1765006236394,-500.0,0.00015481,2]
[396496663,1765006236458,-500.0,0.00015481,2]
[396496664,1765006236520,-500.0,0.00015481,2]
[396496665,1765006236585,-500.0,0.00015481,2]
[396496666,1765006236646,-500.0,0.00015481,2]
[396496667,1765006236708,-500.0,0.00015481,2]
[396496668,1765006236770,-500.0,0.00015481,2]
[396496669,1765006236834,-500.0,0.00015481,2]
[396496670,1765006236896,-500.0,0.00015481,2]
[396496678,1765006238968,-148.08815275,0.00015481,2]
[396496679,1765006238978,-152.51184725,0.00015481,2]
[396496680,1765006238989,-126.48815275,0.00015481,2]
[396496681,1765006238998,-300.0,0.00015481,2]
[396496682,1765006239008,-1127.20184725,0.00015482,2]
[396496683,1765006239032,-1372.79815275,0.00015482,2]
[396496684,1765006239041,-367477.43555647,0.00015482,2]
[396496685,1765006239052,-800.0,0.00015482,2]
[396496686,1765006239098,-775.3665423,0.00015482,2]
[396496687,1765006239109,-58365.76515487,0.00015482,2]
[396496688,1765006239590,-4449.14513434,0.00015482,2]
[396496689,1765006239669,-10000.01,0.00015482,2]
[396496690,1765006239952,-306.96782944,0.00015482,2]
[396496691,1765006239965,-2894.87954665,0.00015482,2]
[396496692,1765006240068,-150241.22452871,0.00015482,2]
[396496693,1765006240079,-104017.41537934,0.00015482,2]
[396496694,1765006240240,-14017.1066969,0.00015482,2]
[396496695,1765006240386,-15631.90960036,0.00015482,2]
[396496700,1765006242980,-1242.13822015,0.00015482,2]
[396496701,1765006242998,-29780.63581047,0.00015482,2]
[396496702,1765006243008,-2156.10789493,0.00015482,2]
[396496703,1765006243017,-1458.74295459,0.00015482,2]
[396496704,1765006243026,-1000.0,0.00015579,3]
[396496705,1765006243035,-500.0,0.00015581,2]
[396496706,1765006243043,-500.0,0.00015581,2]
[396496707,1765006243052,-500.0,0.00015581,2]
[396496708,1765006243061,-500.0,0.00015581,2]
[396496709,1765006243071,-500.0,0.00015581,2]
[396496710,1765006243080,-500.0,0.00015581,2]
[396496711,1765006243090,-467.8,0.00015581,2]
[396496712,1765006243099,-500.0,0.00015581,2]
[396496713,1765006243108,-500.0,0.00015581,2]
[396496714,1765006243117,-500.0,0.00015581,2]
[396496715,1765006243126,-500.0,0.00015581,2]
[396496716,1765006243136,-500.0,0.00015581,2]
[396496717,1765006243145,-500.0,0.00015581,2]
[396496718,1765006243154,-501.80024857,0.00015581,2]
[396496719,1765006243163,-500.0,0.00015581,2]
[396496720,1765006243172,-500.0,0.00015581,2]
[396496721,1765006243181,-556.83585957,0.00015581,2]
[396496722,1765006243191,-196.13256283,0.00015581,2]
[396496723,1765006243201,-219.46687473,0.00015581,2]
[396496724,1765006243210,-2133.31916329,0.00015581,2]
[396496726,1765006243219,-1664.18092472,0.00015581,2]
[396496727,1765006243230,-500.0,0.00015581,2]
[396496728,1765006243240,-500.0,0.00015581,2]
[396496730,1765006243250,-500.0,0.00015581,2]
[396496731,1765006243259,-500.0,0.00015581,2]
[396496732,1765006243268,-500.0,0.00015581,2]
[396496733,1765006243278,-500.0,0.00015581,2]
[396496734,1765006243287,-9091.4521,0.00015582,2]
[396496735,1765006243296,-1000.0,0.00015582,2]
[396496736,1765006243306,-150.0,0.00015585,2]
[396496737,1765006243315,-150.0,0.00015587,2]
[396496738,1765006243325,-150.0,0.0001559,2]
[396496739,1765006243339,-150.0,0.00015591,2]
[396496740,1765006243348,-150.0,0.00015603,2]
[396496741,1765006243357,-150.0,0.00015608,2]
[396496742,1765006243367,-150.0,0.00015613,2]
[396496744,1765006243376,-150.0,0.00015627,2]
[396496745,1765006243385,-150.0,0.00015627,2]
[396496746,1765006243395,-150.0,0.00015627,2]
[396496747,1765006243404,-150.0,0.00015627,2]
[396496748,1765006243414,-150.0,0.00015627,2]